[Event "1.FrauenBL 2016-17"]
[Site "Berlin"]
[Date "2017.04.29"]
[Round "11.5"]
[White "Lubbe, Melanie"]
[Black "Heinatz, Gundula"]
[Result "1/2-1/2"]
[ECO "B70"]
[WhiteElo "2298"]
[BlackElo "2173"]
[Annotator "ChessBase"]
[PlyCount "121"]
[EventDate "2017.??.??"]
[EventType "team-tourn"]
[EventCountry "GER"]
[SourceTitle "playchess.com"]
[Source "ChessBase"]
[SourceQuality "1"]
[WhiteTeam "Rodewischer SM"]
[BlackTeam "Karlsruher SF"]
[TimeControl "40/6000+30:3000+30"]

1. e4 {[%emt 1:30:27]} c5 {[%emt 1:30:14]} 2. Nf3 {[%emt 1:30:51]} Nc6 {[%emt 1:30:09]} 3. d4 {[%emt 1:31:13]} cxd4 {[%emt 1:31:40]} 4. Nxd4 {[%emt 1:31:40]} g6 {[%emt 1:30:35]} 5. Be2 {[%emt 1:31:48]} Bg7 {[%emt 1:30:58]} 6. Nb3 {[%emt 1:32:12]} Nf6 {[%emt 1:30:54]} 7. Nc3 {[%emt 1:32:36]} O-O {[%emt 1:31:04]} 8. O-O {[%emt 1:33:01]} d6 {[%emt 1:29:53]} 9. Bg5 {[%emt 1:29:53]} Be6 {[%emt 1:29:48]} 10. Kh1 {[%emt 1:33:29]} Na5 {[%emt 1:28:32]} 11. Nd5 {[%emt 1:30:12]} Bxd5 {[%emt 1:23:45]} 12. exd5 {[%emt 1:23:45]} Nxb3 {[%emt 1:24:07]} 13. axb3 {[%emt 1:30:51]} Ne4 {[%emt 1:24:19]} 14. Bc1 {[%emt 1:30:47]} a5 {[%emt 1:18:17]} 15. Qd3 {[%emt 1:26:43]} Nc5 {[%emt 1:13:24]} 16. Qb5 {[%emt 1:13:24]} Qc7 {[%emt 1:07:12]} 17. Ra2 {[%emt 1:07:12]} Rfc8 {[%emt 1:06:18]} 18. Be3 {[%emt 1:01:35]} Qd8 {[%emt 0:56:21]} 19. Rfa1 {[%emt 0:56:21]} b6 {[%emt 0:54:49]} 20. h3 {[%emt 0:47:30]} Be5 {[%emt 0:48:06]} 21. Bd1 {[%emt 0:40:46]} f5 {[%emt 0:42:26]} 22. c3 {[%emt 0:31:01]} f4 {[%emt 0:40:56]} 23. Bxc5 {[%emt 0:40:56]} Rxc5 {[%emt 0:38:52]} 24. Qd3 {[%emt 0:38:52]} Rb8 {[%emt 0:28:41]} 25. Bg4 {[%emt 0:28:10]} Kg7 {[%emt 0:35:48]} 26. Be6 {[%emt 0:35:48]} Qf8 {[%emt 0:30:33]} 27. Rd1 {[%emt 0:20:05]} f3 {[%emt 0:20:05]} 28. g3 {[%emt 0:20:06]} Qf6 {[%emt 0:25:38]} 29. Ra4 {[%emt 0:25:38]} Rf8 {[%emt 0:24:39]} 30. Re4 {[%emt 0:15:21]} b5 {[%emt 0:23:53]} 31. b4 {[%emt 0:10:25]} axb4 {[%emt 0:21:53]} 32. Rxb4 {[%emt 0:10:52]} h5 {[%emt 0:21:47]} 33. Re1 {[%emt 0:06:52]} Ra8 {[%emt 0:10:10]} 34. Kh2 {[%emt 0:02:53]} h4 {[%emt 0:10:26]} 35. Bg4 {[%emt 0:01:25]} hxg3+ {[%emt 0:01:54]} 36. fxg3 {[%emt 0:01:54]} f2 {[%emt 0:07:46]} 37. Rf1 {[%emt 0:02:23]} Rf8 {[%emt 0:07:01]} 38. Kg2 {[%emt 0:01:23]} Qg5 {[%emt 0:02:25]} 39. Be6 {[%emt 0:00:42]} Rc4 {[%emt 0:01:56]} 40. h4 {[%emt 0:00:07]} Qh6 {[%emt 0:00:14]} 41. Rxc4 {[%emt 0:16:22]} bxc4 {[%emt 0:30:31]} 42. Qe2 {[%emt 0:15:03]} Rf6 {[%emt 0:22:33]} 43. Rxf2 {[%emt 0:13:29]} Qc1 {[%emt 0:22:54]} 44. Rxf6 {[%emt 0:11:16]} Bxf6 {[%emt 0:23:15]} 45. Bd7 {[%emt 0:23:15]} Qb1 {[%emt 0:20:08]} 46. Bb5 {[%emt 0:08:58]} Bxc3 {[%emt 0:19:18]} 47. Qxe7+ {[%emt 0:08:54]} Kg8 {[%emt 0:19:16]} 48. Qe8+ {[%emt 0:06:23]} Kg7 {[%emt 0:19:39]} 49. bxc3 {[%emt 0:06:20]} Qc2+ {[%emt 0:20:01]} 50. Kf3 {[%emt 0:05:46]} Qd3+ {[%emt 0:18:43]} 51. Kf2 {[%emt 0:05:01]} Qf5+ {[%emt 0:18:58]} 52. Kg2 {[%emt 0:02:33]} Qc2+ {[%emt 0:17:57]} 53. Kf3 {[%emt 0:03:00]} Qf5+ {[%emt 0:17:44]} 54. Ke2 {[%emt 0:02:32]} Qd3+ {[%emt 0:17:54]} 55. Ke1 {[%emt 0:01:44]} Qb1+ {[%emt 0:16:01]} 56. Kf2 {[%emt 0:01:09]} Qf5+ {[%emt 0:16:19]} 57. Kg2 {[%emt 0:00:55]} Qc2+ {[%emt 0:00:55]} 58. Kg1 {[%emt 0:01:02]} Qb1+ {[%emt 0:01:02]} 59. Kh2 {[%emt 0:01:11]} Qc2+ {[%emt 0:01:11]} 60. Kh3 {[%emt 0:01:36]} Qf5+ {[%emt 0:17:08]} 61. Kg2 {[%emt 0:01:51]} 1/2-1/2

[Event "1.FrauenBL 2016-17"]
[Site "Berlin"]
[Date "2017.04.29"]
[Round "11.5"]
[White "Schoene, Maria"]
[Black "Kachiani-Gersinska, Ketino"]
[Result "1/2-1/2"]
[ECO "C93"]
[WhiteElo "2269"]
[BlackElo "2366"]
[Annotator "NA"]
[PlyCount "56"]
[EventDate "2017.??.??"]
[EventType "team-tourn"]
[EventCountry "GER"]
[SourceTitle "playchess.com"]
[Source "ChessBase"]
[SourceQuality "1"]
[WhiteTeam "SC Bad Königshofen"]
[BlackTeam "OSG Baden-Baden"]
[TimeControl "40/6000+30:3000+30"]

1. e4 {[%emt 1:30:27]} e5 {[%emt 1:29:46]} 2. Nf3 {[%emt 1:30:50]} Nc6 {[%emt 1:30:50]} 3. Bb5 {[%emt 1:31:11]} a6 {[%emt 1:30:32]} 4. Ba4 {[%emt 1:31:32]} Nf6 {[%emt 1:30:51]} 5. O-O {[%emt 1:31:35]} Be7 {[%emt 1:31:06]} 6. Re1 {[%emt 1:31:06]} b5 {[%emt 1:30:13]} 7. Bb3 {[%emt 1:31:58]} d6 {[%emt 1:28:13]} 8. c3 {[%emt 1:31:12]} O-O {[%emt 1:31:12]} 9. h3 {[%emt 1:30:35]} Re8 {[%emt 1:24:57]} 10. d4 {[%emt 1:19:53]} Bf8 {[%emt 1:24:24]} 11. Nbd2 {[%emt 1:13:50]} Bb7 {[%emt 1:24:38]} 12. a3 {[%emt 1:12:21]} h6 {[%emt 1:13:08]} 13. Bc2 {[%emt 1:13:08]} Nb8 {[%emt 0:59:34] [#] C93: Closed Ruy Lopez: Smyslov Variation} 14. Nh4 $146 {[%emt 0:47:09]} (14. a4 Nbd7 15. Bd3 c6 16. b3 g6 17. Bb2 Bg7 18. Qc2 Nh5 19. Rad1 Rc8 20. Bf1 Qb6 21. b4 {½-½ (76) Inarkiev,E (2732)-Vitiugov,N (2721) Novosibirsk 2016}) 14... Nbd7 {[%emt 0:53:49]} 15. Nf5 {[%emt 0:44:40]} g6 {[%emt 0:51:11]} 16. Ng3 {[%emt 0:44:05]} Bg7 {[%emt 0:48:04]} 17. Nf3 {[%emt 0:41:39]} d5 {[%emt 0:41:59]} 18. dxe5 {[%emt 0:26:54]} Nxe4 {[%emt 0:39:46]} 19. Nxe4 {[%emt 0:20:17]} dxe4 {[%emt 0:20:17]} 20. Bxe4 {[%emt 0:20:22]} Bxe4 {[%emt 0:40:31]} 21. Rxe4 {[%emt 0:20:45]} Nxe5 {[%emt 0:40:22]} 22. Qe2 {[%emt 0:19:45]} Nxf3+ {[%emt 0:27:45]} 23. Qxf3 {[%emt 0:20:05]} Rxe4 {[%emt 0:20:05]} 24. Qxe4 {[%emt 0:20:31]} Qd1+ {[%emt 0:27:52]} 25. Kh2 {[%emt 0:20:56]} Rd8 {[%emt 0:26:27]} 26. a4 {[%emt 0:11:03]} Bf8 $11 {[%emt 0:26:36]} 27. axb5 {[%emt 0:09:35]} axb5 {[%emt 0:09:35]} 28. Rb1 {[%emt 0:08:47]} Qd5 {[%emt 0:15:31]} 1/2-1/2

[Event "1.FrauenBL 2016-17"]
[Site "Berlin"]
[Date "2017.04.29"]
[Round "11.5"]
[White "Kube, Hannelore"]
[Black "Scognamiglio, Stefanie"]
[Result "1/2-1/2"]
[ECO "A36"]
[WhiteElo "1930"]
[BlackElo "2086"]
[Annotator "NA"]
[PlyCount "69"]
[EventDate "2017.??.??"]
[EventType "team-tourn"]
[EventCountry "GER"]
[SourceTitle "playchess.com"]
[Source "ChessBase"]
[SourceQuality "1"]
[WhiteTeam "SV Medizin Erfurt"]
[BlackTeam "Hamburger SK"]
[TimeControl "40/6000+30:3000+30"]

1. c4 {[%emt 1:30:27]} c5 {[%emt 1:30:27]} 2. Nc3 {[%emt 1:30:51]} Nc6 {[%emt 1:30:23]} 3. g3 {[%emt 1:31:13]} g6 {[%emt 1:30:31]} 4. Bg2 {[%emt 1:31:38]} Bg7 {[%emt 1:30:58]} 5. e4 {[%emt 1:32:04]} d6 {[%emt 1:30:58]} 6. Nge2 {[%emt 1:31:36]} e6 {[%emt 1:24:30]} 7. d3 {[%emt 1:31:25]} Nge7 {[%emt 1:24:44]} 8. O-O {[%emt 1:30:50]} O-O {[%emt 1:24:18]} 9. Be3 {[%emt 1:30:10]} Nd4 {[%emt 1:23:58]} 10. Qd2 {[%emt 1:29:56]} Nec6 {[%emt 1:21:10]} 11. Bh6 {[%emt 1:22:39]} Rb8 {[%emt 1:22:39]} 12. Bxg7 {[%emt 1:22:26]} Kxg7 {[%emt 1:21:04]} 13. Nxd4 {[%emt 1:16:19]} Nxd4 {[%emt 1:20:41] LiveBook: 5 Games} 14. Ne2 {[%emt 1:20:41] A36: Symmetrical English vs ...g6: 4 Bg2 Bg7} (14. Rab1 a6 15. Ne2 Nxe2+ 16. Qxe2 b5 17. e5 Bb7 18. b3 Bxg2 19. Kxg2 Qc7 20. Rbe1 Rfd8 21. f4 d5 22. cxb5 axb5 {0-1 (47) Axelrod,A (2328)-Popilski,G (2523) Acre 2013}) 14... Nxe2+ {[%emt 1:14:53]} 15. Qxe2 {[%emt 1:15:00]} e5 {[%emt 1:14:33]} 16. h4 $146 {[%emt 1:12:02]} (16. f4 f6 17. Qe3 b5 18. b3 Qe7 19. Rf2 Bd7 20. Raf1 a5 21. h3 a4 {0-1 (68) Burgos Figueroa,C (2285)-Cruz,J (2292) Mollet del Valles 2009}) 16... Bd7 {[%emt 1:13:14]} 17. Kh2 {[%emt 1:11:27]} Qc8 {[%emt 1:13:29]} 18. Qe3 {[%emt 1:09:16]} a5 {[%emt 1:00:45]} 19. a4 {[%emt 1:00:45]} Qe8 {[%emt 0:59:44]} 20. b3 {[%emt 1:03:14]} Qc8 {[%emt 1:03:14]} 21. Ra2 {[%emt 0:59:38]} f6 {[%emt 0:55:23]} 22. f4 {[%emt 0:55:00]} Qc7 {[%emt 0:55:00]} 23. Raf2 {[%emt 0:51:02]} Qb6 {[%emt 0:49:23]} 24. Bh3 {[%emt 0:35:29]} Bxh3 {[%emt 0:23:51]} 25. Kxh3 {[%emt 0:35:57]} Rbc8 {[%emt 0:23:14]} 26. Rb1 {[%emt 0:34:03]} Rc6 {[%emt 0:22:50]} 27. f5 $16 {[%emt 0:22:50]} Qd8 {[%emt 0:28:34]} 28. g4 {[%emt 0:27:06]} Rc7 {[%emt 0:08:34]} 29. Rg1 {[%emt 0:19:49]} Rh8 {[%emt 0:05:01]} 30. g5 {[%emt 0:18:03]} Rf7 {[%emt 0:03:30]} 31. h5 {[%emt 0:08:16]} Kf8 {[%emt 0:01:48]} 32. h6 {[%emt 0:05:59]} fxg5 {[%emt 0:00:37]} 33. Rxg5 {[%emt 0:00:37]} Qd7 {[%emt 0:00:10]} 34. Kh2 {[%emt 0:02:43]} Ke8 {[%emt 0:00:20]} 35. fxg6 {[%emt 0:00:38]} 1/2-1/2

[Event "1.FrauenBL 2016-17"]
[Site "Berlin"]
[Date "2017.04.29"]
[Round "11.6"]
[White "Tammert, Iamze"]
[Black "Schneider, Veronika"]
[Result "1-0"]
[ECO "A25"]
[WhiteElo "2290"]
[BlackElo "2230"]
[Annotator "NA"]
[PlyCount "63"]
[EventDate "2017.??.??"]
[EventType "team-tourn"]
[EventCountry "GER"]
[SourceTitle "playchess.com"]
[Source "ChessBase"]
[SourceQuality "1"]
[WhiteTeam "OSG Baden-Baden"]
[BlackTeam "SC Bad Königshofen"]
[TimeControl "40/6000+30:3000+30"]

{[%evp 17,61,57,73,88,32767,80,32767,32767,170,76,120,106,216,224,208,160,162,184,337,32767,32767,209,32767,32767,32767,32767,32767,32767,841,928,32767,32767,690,32767,32767,32767,629,547,687,744,32767,32767,32767,32767,32767,741]} 1. c4 {[%emt 1:30:25]} e5 {[%emt 1:30:21]} 2. Nc3 {[%emt 1:29:47]} Nc6 {[%emt 1:30:41]} 3. g3 {[%emt 1:29:48]} Bc5 {[%emt 1:30:49]} 4. Bg2 {[%emt 1:30:07]} a6 {[%emt 1:30:43] A25: English Opening vs King's Indian with ...Nc6 but without early d3} 5. e3 {[%emt 1:30:26]} (5. Nf3 d6 6. d3 Nf6 7. O-O h6 8. a3 O-O 9. b4 Ba7 10. Bb2 Re8 11. e3 Ne7 12. Nd2 Rb8 13. Nde4 Ng6 14. Rc1 c6 15. c5 Nxe4 16. Nxe4 d5 17. Nd6 Bd7 18. Nxe8 Qxe8 {0-1 (44) Grischuk,A (2754)-Carlsen,M (2857) chess.com INT 2016}) 5... d6 {[%emt 1:30:51]} 6. Nf3 {[%emt 1:29:33]} Ba7 {[%emt 1:29:41]} 7. d4 {[%emt 1:28:36]} Bg4 {[%emt 1:27:33]} 8. h3 {[%emt 1:16:08]} Bh5 $146 {[%emt 1:24:47]} (8... Bxf3 9. Bxf3 exd4 10. exd4 Nge7 11. Be3 Nf5 12. Qd3 Nfxd4 13. Bxd4 Nxd4 14. Bxb7 {½-½ (38) Fridman,D (2597)-Hansen,S (2590) Germany 2016}) 9. Qa4 {[%emt 1:07:14]} Qd7 {[%emt 1:22:01]} 10. dxe5 {[%emt 1:07:20]} dxe5 {[%emt 1:21:43]} 11. O-O {[%emt 1:21:43]} Bxf3 {[%emt 1:05:37]} 12. Bxf3 {[%emt 1:07:13]} Nge7 {[%emt 1:07:13]} 13. Nd5 {[%emt 1:00:34]} (13. b4 $18 {is more deadly.}) 13... O-O-O {[%emt 0:56:05]} 14. b4 {[%emt 0:58:30]} ({Reject} 14. Bd2 $6 Qxh3 15. Bc3 (15. Bg2 Qg4 16. Nxe7+ Nxe7 $11) 15... Nf5 $11) 14... f5 {[%emt 0:58:30] [#]} ({Wrong is} 14... Qxh3 $2 15. b5 $18) (14... Nxd5 $16 15. Bxd5 (15. cxd5 Ne7 16. Qxd7+ Rxd7 $14) 15... Kb8) 15. b5 $1 {[%emt 0:55:38]} Nb8 {[%emt 0:48:07]} 16. Ba3 {[%emt 0:52:34]} Nxd5 {[%emt 0:46:17]} 17. Bxd5 {[%emt 0:52:49]} ({But not} 17. cxd5 $6 Qxb5 18. Qxb5 axb5 $14) 17... f4 {[%emt 0:27:14]} (17... c6 {keeps fighting.}) 18. exf4 {[%emt 0:26:06]} exf4 {[%emt 0:26:29]} 19. g4 {[%emt 0:17:35]} Rhe8 {[%emt 0:22:15]} 20. Rad1 {[%emt 0:17:26]} c6 {[%emt 0:22:22]} 21. Bxc6 {[%emt 0:14:28]} Qf7 {[%emt 0:10:32]} 22. Bxe8 {[%emt 0:14:42]} Rxe8 {[%emt 0:10:36]} 23. Rfe1 {[%emt 0:13:54]} f3 {[%emt 0:07:40]} 24. b6 {[%emt 0:07:21]} Rxe1+ {[%emt 0:07:50]} 25. Rxe1 {[%emt 0:07:50]} Bxb6 {[%emt 0:08:11]} 26. Qe8+ {[%emt 0:08:11]} Qxe8 {[%emt 0:08:35]} 27. Rxe8+ {[%emt 0:08:02]} Bd8 {[%emt 0:08:37]} 28. Be7 {[%emt 0:08:18]} Nc6 {[%emt 0:08:57]} 29. Bxd8 {[%emt 0:08:44]} Nxd8 {[%emt 0:08:44]} 30. Re7 {[%emt 0:09:09]} g5 {[%emt 0:08:49]} 31. Rxh7 $18 {[%emt 0:09:28]} Ne6 {[%emt 0:09:12]} 32. Kh2 {[%emt 0:09:28]} 1-0

[Event "1.FrauenBL 2016-17"]
[Site "Berlin"]
[Date "2017.04.29"]
[Round "11.6"]
[White "Mader, Manuela"]
[Black "Kazarian, Anna-Maja"]
[Result "1-0"]
[ECO "B22"]
[WhiteElo "2219"]
[BlackElo "2257"]
[Annotator "NA"]
[PlyCount "98"]
[EventDate "2017.??.??"]
[EventType "team-tourn"]
[EventCountry "GER"]
[SourceTitle "playchess.com"]
[Source "ChessBase"]
[SourceQuality "1"]
[WhiteTeam "Karlsruher SF"]
[BlackTeam "Rodewischer SM"]
[TimeControl "40/6000+30:3000+30"]

1. e4 {[%emt 1:30:28]} c5 {[%emt 1:30:28]} 2. c3 {[%emt 1:30:53]} d5 {[%emt 1:30:49]} 3. exd5 {[%emt 1:31:19]} Qxd5 {[%emt 1:31:15]} 4. d4 {[%emt 1:31:41]} Nc6 {[%emt 1:30:26]} 5. Nf3 {[%emt 1:30:26]} Bg4 {[%emt 1:30:17]} 6. dxc5 {[%emt 1:32:02]} Qxd1+ {[%emt 1:29:51]} 7. Kxd1 {[%emt 1:32:27]} O-O-O+ {[%emt 1:30:01] B22: Sicilian: 2 c3} (7... e5 8. b4 a5 9. b5 Na7 10. Be3 Ne7 11. Kc2 f6 12. a4 Nd5 13. c6 Bf5+ 14. Kc1 Nxe3 15. cxb7 {0-1 (78) Zhigalko,S (2678)-Al Modiahki,M (2549) Dubai 2014}) 8. Nbd2 {[%emt 1:30:01]} e5 {[%emt 1:20:31]} 9. b4 {[%emt 1:28:15]} e4 {[%emt 1:21:45]} (9... Nf6 $14) 10. h3 {[%emt 1:21:21]} Bf5 {[%emt 0:59:58] [#]} 11. g4 $1 {[%emt 0:59:58]} exf3 {[%emt 0:59:51]} 12. gxf5 {[%emt 1:17:08]} Be7 $146 {[%emt 1:17:08]} (12... Nge7 13. Kc2 Nxf5 14. Nxf3 Be7 15. Bd3 {1-0 (30) Michalek,J (2365)-Vozka,P (2299) Czechia 2001}) 13. Kc2 {[%emt 1:13:56]} Bf6 {[%emt 0:55:16]} 14. a3 {[%emt 1:07:13]} ({Not} 14. Nxf3 Nxb4+ 15. cxb4 Bxa1 $11) 14... Nge7 {[%emt 0:53:35]} 15. Nxf3 {[%emt 1:01:20]} Nd5 {[%emt 0:48:24]} 16. Bd2 {[%emt 0:54:11]} Rhe8 {[%emt 0:46:53]} 17. Bc4 {[%emt 0:46:53]} Re4 {[%emt 0:43:19]} 18. Bd3 {[%emt 0:48:13]} Re7 {[%emt 0:42:51]} 19. Rae1 {[%emt 0:40:48]} Red7 {[%emt 0:41:41]} 20. Bc4 {[%emt 0:35:59]} h6 {[%emt 0:36:33]} 21. Re2 {[%emt 0:35:20]} a6 {[%emt 0:26:57]} 22. Rhe1 {[%emt 0:33:46]} Nce7 {[%emt 0:33:46]} 23. Kb3 {[%emt 0:23:40]} Nxf5 {[%emt 0:23:28]} 24. Ne5 {[%emt 0:23:28]} Re7 {[%emt 0:21:18]} (24... Bxe5 $16 25. Rxe5 Nh4) 25. Ng4 {[%emt 0:10:27]} Bh4 {[%emt 0:18:57]} 26. Bd3 {[%emt 0:08:34]} g6 {[%emt 0:17:34]} 27. Bxf5+ {[%emt 0:17:34]} gxf5 {[%emt 0:18:03]} 28. Nxh6 {[%emt 0:08:28]} Rxe2 {[%emt 0:17:23]} 29. Rxe2 {[%emt 0:08:54]} f4 {[%emt 0:15:42]} 30. Nxf7 {[%emt 0:08:18]} Rf8 {[%emt 0:16:04]} 31. Nd6+ {[%emt 0:06:52]} Kc7 {[%emt 0:15:53]} 32. c4 {[%emt 0:06:44]} f3 {[%emt 0:16:19]} 33. Re8 {[%emt 0:02:04]} ({Don't choose} 33. cxd5 $2 fxe2 34. b5 Bxf2 35. b6+ Kb8 $19) 33... Rxe8 {[%emt 0:11:28]} 34. Nxe8+ {[%emt 0:02:29]} Kd8 {[%emt 0:02:29]} 35. cxd5 {[%emt 0:11:53]} Bxf2 {[%emt 0:12:16]} 36. Nf6 {[%emt 0:01:58]} Bxc5 {[%emt 0:12:12]} 37. Ne4 {[%emt 0:12:12]} f2 {[%emt 0:02:22]} 38. Nxf2 {[%emt 0:02:49]} Bxf2 {[%emt 0:12:58]} 39. Kc4 {[%emt 0:01:35]} Kd7 {[%emt 0:11:12]} 40. a4 {[%emt 0:00:54]} Bg3 {[%emt 0:09:49]} 41. Bg5 {[%emt 0:00:08]} Kd6 {[%emt 0:09:28]} 42. h4 {[%emt 0:28:40]} b5+ {[%emt 0:38:50]} 43. axb5 {[%emt 0:29:02]} axb5+ {[%emt 0:39:16]} 44. Kxb5 {[%emt 0:39:16]} Kxd5 {[%emt 0:28:35]} 45. h5 {[%emt 0:25:45]} Be5 {[%emt 0:37:43]} 46. h6 {[%emt 0:37:43]} Ke6 {[%emt 0:38:11]} 47. Bd2 {[%emt 0:38:11]} Z0 {[%emt 0:21:03]} 48. Kc5 {[%emt 0:21:03] Bc1 0:21:03} Bg7 {[%emt 0:21:27] Kf7 0:37:47} 49. b5 {[%emt 0:21:50] Bf4 0:36:32 b6 0:22:09 Kg6 0:36:47 Kc6 0:22:15 Kh7 0:22:15 b7 0:21:30 Kg6 0:21:30} Kd7 {[%emt 0:36:48] Kh7 0:36:48 Kc8 0:22:24} 1-0

[Event "1.FrauenBL 2016-17"]
[Site "Berlin"]
[Date "2017.04.29"]
[Round "11.6"]
[White "Bluebaum, Bettina"]
[Black "Dietrich, Mareike"]
[Result "1-0"]
[ECO "E92"]
[WhiteElo "1987"]
[BlackElo "1712"]
[Annotator "NA"]
[PlyCount "75"]
[EventDate "2017.??.??"]
[EventType "team-tourn"]
[EventCountry "GER"]
[SourceTitle "playchess.com"]
[Source "ChessBase"]
[SourceQuality "1"]
[WhiteTeam "Hamburger SK"]
[BlackTeam "SV Medizin Erfurt"]
[TimeControl "40/6000+30:3000+30"]

1. d4 {[%emt 1:30:30]} Nf6 {[%emt 1:30:27]} 2. c4 {[%emt 1:30:51]} g6 {[%emt 1:30:51]} 3. Nc3 {[%emt 1:31:14]} Bg7 {[%emt 1:31:15]} 4. e4 {[%emt 1:31:30]} d6 {[%emt 1:31:41]} 5. Nf3 {[%emt 1:31:52]} O-O {[%emt 1:31:52]} 6. Be2 {[%emt 1:32:05]} e5 {[%emt 1:32:27]} 7. Be3 {[%emt 1:32:33]} Ng4 {[%emt 1:32:33]} 8. Bg5 {[%emt 1:32:46]} f6 {[%emt 1:32:52]} 9. Bh4 {[%emt 1:32:43]} g5 {[%emt 1:32:43]} 10. Bg3 {[%emt 1:33:05]} Nh6 {[%emt 1:33:25]} 11. h3 {[%emt 1:26:39]} Nc6 {[%emt 1:26:39]} 12. d5 {[%emt 1:24:14] E92: King's Indian: Classical: 6 Be2 e5: 7 dxe5, 7 Be3 and Petrosian System without 7...Nbd7} Ne7 {[%emt 1:31:29]} 13. Nd2 {[%emt 1:22:32]} f5 {[%emt 1:26:19]} (13... Ng6 14. Bg4 f5 15. exf5 Nxf5 16. Nde4 Nf4 17. Rg1 h6 18. Qd2 h5 19. Bxf5 Bxf5 {½-½ (56) Postny,E (2631)-Saric,I (2628) Bastia 2013}) 14. f3 {[%emt 1:22:48]} Nf7 $146 {[%emt 1:22:48]} (14... Ng6 15. Qc2 g4 16. hxg4 fxg4 17. O-O-O Nf4 18. Rh2 Qg5 {½-½ (50) Spiess,G (2427)-Uhlmann,W (2412) Germany 2009}) 15. Qc2 {[%emt 1:15:30]} Bd7 {[%emt 1:17:50]} 16. Bf2 {[%emt 1:09:36]} c5 {[%emt 1:11:40]} 17. h4 {[%emt 1:00:38]} g4 {[%emt 0:48:19]} 18. h5 {[%emt 0:57:22]} a6 {[%emt 0:40:56]} 19. Bh4 {[%emt 0:53:49]} Qe8 {[%emt 0:40:10]} 20. Bxe7 {[%emt 0:52:33]} Qxe7 {[%emt 0:39:43]} 21. exf5 {[%emt 0:52:57]} g3 {[%emt 0:36:24]} (21... gxf3 $11 22. Bxf3 (22. gxf3 Nh6 23. Bd3 Nxf5 24. Bxf5 Bxf5 $17) 22... e4 23. Bxe4 (23. Qxe4 Qg5 24. Qe2 Rae8 $17) 23... b5) 22. Bd3 {[%emt 0:49:57]} Ng5 {[%emt 0:32:07]} 23. Ne2 $18 {[%emt 0:48:26]} Nf7 {[%emt 0:28:10]} 24. Rh3 {[%emt 0:32:43]} Nh6 {[%emt 0:32:43]} 25. Nxg3 {[%emt 0:28:14]} Qf7 {[%emt 0:28:14]} 26. O-O-O {[%emt 0:21:31]} Nxf5 {[%emt 0:22:16]} 27. Nxf5 {[%emt 0:21:30]} Bxf5 {[%emt 0:22:46]} 28. Bxf5 {[%emt 0:22:46]} Qxf5 {[%emt 0:21:29]} 29. Ne4 {[%emt 0:23:07]} Bh6+ {[%emt 0:20:22]} 30. Kb1 {[%emt 0:21:54]} Rad8 {[%emt 0:19:01]} 31. Rg1 {[%emt 0:19:01]} Be3 {[%emt 0:16:33]} 32. g4 {[%emt 0:11:49]} Qf7 {[%emt 0:15:16]} 33. Rg2 {[%emt 0:12:02]} b5 {[%emt 0:13:24]} 34. Qe2 {[%emt 0:11:05]} Qf4 {[%emt 0:11:38]} 35. g5 {[%emt 0:10:51]} bxc4 {[%emt 0:10:21]} 36. Rg4 {[%emt 0:10:21]} Z0 {[%emt 0:10:59] Rf5 0:10:59} 37. Qd1 {[%emt 0:10:59]} Bc1 {[%emt 0:10:59]} 38. Rh1 {[%emt 0:10:59] Qc1 0:10:59} 1-0

[Event "1.FrauenBL 2016-17"]
[Site "Berlin"]
[Date "2017.04.29"]
[Round "11.7"]
[White "Korenova, Martina"]
[Black "Hund, Barbara"]
[Result "1-0"]
[ECO "E11"]
[WhiteElo "2154"]
[BlackElo "2127"]
[Annotator "NA"]
[PlyCount "93"]
[EventDate "2017.??.??"]
[EventType "team-tourn"]
[EventCountry "GER"]
[SourceTitle "playchess.com"]
[Source "ChessBase"]
[SourceQuality "1"]
[WhiteTeam "Rodewischer SM"]
[BlackTeam "Karlsruher SF"]
[TimeControl "40/6000+30:3000+30"]

1. d4 {[%emt 1:30:27]} Nf6 {[%emt 1:30:20]} 2. c4 {[%emt 1:30:36]} e6 {[%emt 1:30:39]} 3. g3 {[%emt 1:30:39]} Bb4+ {[%emt 1:30:39]} 4. Bd2 {[%emt 1:30:23]} Qe7 {[%emt 1:30:21]} 5. Bg2 {[%emt 1:30:33]} Nc6 {[%emt 1:29:26]} 6. Nf3 {[%emt 1:25:46]} Ne4 {[%emt 1:23:31]} 7. O-O {[%emt 1:25:27]} O-O {[%emt 1:22:17] E11: Bogo-Indian} (7... Nxd2 8. Nbxd2 O-O 9. Nb3 b6 10. Rc1 Rb8 11. a3 Bd6 12. e4 Qd8 13. e5 Be7 14. d5 Na5 15. Nbd2 {½-½ (54) Danielian,E (2484)-Melia,S (2410) Batumi 2012}) 8. a3 {[%emt 1:25:17]} Bxd2 {[%emt 1:19:47]} 9. Nfxd2 $146 {[%emt 1:24:27]} (9. Nbxd2 f5 10. e3 d5 11. cxd5 exd5 12. Qb3 Qd6 13. Rac1 Ne7 14. Nxe4 fxe4 15. Ne5 {½-½ (61) De Mattos,C (1800)-Dacak,F (1698) Foz do Iguacu 2015}) 9... Nxd2 {[%emt 1:19:19]} 10. Qxd2 {[%emt 1:24:54]} d6 {[%emt 1:18:45]} 11. Nc3 {[%emt 1:22:05]} e5 {[%emt 1:22:05]} 12. Nd5 {[%emt 1:21:47]} Qd8 {[%emt 1:12:23]} 13. e3 {[%emt 1:21:11]} Be6 {[%emt 1:09:46]} 14. Rfe1 {[%emt 1:15:32]} Rb8 {[%emt 1:04:51]} 15. b4 {[%emt 1:13:09]} Ne7 {[%emt 1:01:30]} 16. e4 {[%emt 1:05:43]} (16. dxe5 $14 dxe5 17. Qc3) 16... Nc6 {[%emt 0:53:49]} 17. dxe5 {[%emt 1:02:40]} dxe5 {[%emt 0:53:10]} ({But not} 17... Nxe5 $6 18. Rac1 $14) 18. Rad1 {[%emt 0:58:52]} Nd4 {[%emt 0:49:35]} 19. Qc3 {[%emt 0:59:06]} c6 {[%emt 0:43:24]} 20. Ne3 {[%emt 0:59:31]} Qb6 {[%emt 0:42:23]} 21. Nf5 {[%emt 0:42:23]} Bxf5 {[%emt 0:34:58]} 22. exf5 {[%emt 0:55:19]} f6 {[%emt 0:55:19]} 23. c5 {[%emt 0:55:14]} Qc7 {[%emt 0:33:54]} 24. f4 {[%emt 0:33:54]} Rbd8 {[%emt 0:44:57]} 25. Qc4+ {[%emt 0:43:51]} Qf7 {[%emt 0:27:45]} 26. Qxf7+ {[%emt 0:34:34]} Kxf7 {[%emt 0:26:53]} 27. fxe5 {[%emt 0:32:08]} fxe5 {[%emt 0:26:42]} 28. Rc1 {[%emt 0:29:17]} Kf6 {[%emt 0:24:07]} 29. g4 {[%emt 0:29:24] [#]} h5 $1 {[%emt 0:21:55]} 30. h3 {[%emt 0:28:20]} hxg4 {[%emt 0:20:54]} 31. hxg4 {[%emt 0:28:45]} Kg5 {[%emt 0:18:54]} 32. Rc3 {[%emt 0:18:54]} Rfe8 {[%emt 0:16:30]} 33. Re4 {[%emt 0:16:30]} Nb5 {[%emt 0:16:34]} 34. Rh3 {[%emt 0:15:47]} Rd1+ {[%emt 0:11:56]} 35. Kh2 {[%emt 0:11:56]} Ra1 {[%emt 0:11:02]} 36. Ree3 {[%emt 0:08:44]} Ra2 {[%emt 0:10:24]} 37. Kg3 {[%emt 0:08:28]} Rxa3 {[%emt 0:08:28]} 38. Rh5+ {[%emt 0:06:45]} Kf6 {[%emt 0:06:45]} 39. Rxa3 {[%emt 0:06:44]} Nxa3 {[%emt 0:10:40]} 40. Be4 {[%emt 0:07:02]} Rd8 {[%emt 0:07:02]} 41. g5+ {[%emt 0:07:19]} Kf7 {[%emt 0:09:57]} 42. Rh7 {[%emt 0:09:57]} Rd4 {[%emt 0:05:57]} 43. f6 {[%emt 0:22:35]} Rxe4 {[%emt 0:22:35]} 44. Rxg7+ {[%emt 0:22:35]} Ke6 {[%emt 0:30:13]} 45. Re7+ {[%emt 0:22:24]} Kd5 {[%emt 0:29:03]} 46. g6 {[%emt 0:29:03]} Re1 $18 {[%emt 0:23:50]} 47. f7 {[%emt 0:17:03]} 1-0